fUSD/lending_fUSD_20250111
["ID","MTS","AMOUNT","RATE_DAILY","PERIOD"]
[348505444,1736595037903,-500.0,9.997e-05,2]
[348505445,1736595037912,-545.9,9.998e-05,2]
[348505446,1736595037923,-500.0,9.998e-05,2]
[348505447,1736595037933,-500.0,9.998e-05,2]
[348505448,1736595037942,-500.0,9.998e-05,2]
[348505449,1736595037951,-500.0,9.998e-05,2]
[348505450,1736595037961,-500.0,9.998e-05,2]
[348505451,1736595037970,-500.0,9.998e-05,2]
[348505453,1736595037980,-500.0,9.998e-05,2]
[348505455,1736595037989,-500.0,9.998e-05,2]
[348505456,1736595037998,-500.0,9.998e-05,2]
[348505457,1736595038007,-500.0,9.998e-05,2]
[348505458,1736595038016,-500.0,9.998e-05,2]
[348505459,1736595038027,-500.0,9.998e-05,2]
[348505460,1736595038036,-500.0,9.998e-05,2]
[348505461,1736595038046,-500.0,9.998e-05,2]
[348505462,1736595038055,-500.0,9.998e-05,2]
[348505463,1736595038065,-500.0,9.998e-05,2]
[348505464,1736595038074,-500.0,9.998e-05,2]
[348505465,1736595038084,-500.0,9.998e-05,2]
[348505466,1736595038095,-500.0,9.998e-05,2]
[348505467,1736595038103,-500.0,9.998e-05,2]
[348505468,1736595038112,-500.0,9.998e-05,2]
[348505469,1736595038122,-738.51,9.998e-05,2]
[348505471,1736595038131,-500.0,9.998e-05,2]
[348505472,1736595038140,-500.0,9.998e-05,2]
[348505473,1736595038149,-500.0,9.998e-05,2]
[348505474,1736595038159,-500.0,9.998e-05,2]
[348505475,1736595038168,-743.89,9.998e-05,2]
[348505476,1736595038177,-500.0,9.998e-05,2]
[348505477,1736595038187,-675.87,9.998e-05,2]
[348505478,1736595038196,-500.0,9.998e-05,2]
[348505479,1736595038205,-500.0,9.998e-05,2]
[348505480,1736595038214,-500.0,9.998e-05,2]
[348505481,1736595038223,-500.0,9.998e-05,2]
[348505482,1736595038233,-500.0,9.998e-05,2]
[348505483,1736595038243,-500.0,9.998e-05,2]
[348505484,1736595038251,-500.0,9.998e-05,2]
[348505485,1736595038261,-500.0,9.998e-05,2]
[348505486,1736595038270,-500.0,9.998e-05,2]
[348505487,1736595038279,-1044.99,9.999e-05,2]
[348505488,1736595038289,-399.06854385,9.999e-05,3]
[348505489,1736595038299,-3723.95,9.999e-05,2]
[348505490,1736595038308,-536.89,9.999e-05,2]
[348505491,1736595038317,-500.0,9.999e-05,2]
[348505492,1736595038327,-1657.34,9.999e-05,2]
[348505493,1736595038336,-500.0,9.999e-05,2]
[348505494,1736595038346,-997.22,9.999e-05,2]
[348505495,1736595038355,-585.25,9.999e-05,2]
[348505496,1736595038364,-1295.08,9.999e-05,2]
[348505497,1736595038373,-1230.8,9.999e-05,2]
[348505498,1736595038383,-1251.91,9.999e-05,2]
[348505499,1736595038392,-1401.45,9.999e-05,2]
[348505500,1736595038402,-500.0,9.999e-05,2]
[348505501,1736595038411,-3713.38,9.999e-05,2]
[348505502,1736595038420,-710.19,9.999e-05,2]
[348505503,1736595038430,-500.0,9.999e-05,2]
[348505504,1736595038439,-500.0,9.999e-05,2]
[348505505,1736595038448,-500.0,9.999e-05,2]
[348505506,1736595038457,-500.0,9.999e-05,2]
[348505507,1736595038467,-1817.65,9.999e-05,2]
[348505512,1736595038677,-500.0,9.999e-05,2]
[348505513,1736595038687,-1337.61,9.999e-05,2]
[348505514,1736595038697,-2092.4,9.999e-05,2]
[348505515,1736595038706,-2131.38,9.999e-05,2]
[348505516,1736595038716,-2174.82,9.999e-05,2]
[348505518,1736595038725,-992.02,9.999e-05,2]
[348505520,1736595038735,-992.02,9.999e-05,2]
[348505521,1736595038746,-953.65,9.999e-05,2]
[348505522,1736595038755,-500.0,9.999e-05,2]
[348505523,1736595038765,-1280.62,9.999e-05,2]
[348505524,1736595038775,-3917.69,9.999e-05,2]
[348505525,1736595038785,-1069.94,9.999e-05,2]
[348505526,1736595038794,-500.0,9.999e-05,2]
[348505527,1736595038803,-500.0,9.999e-05,2]
[348505528,1736595038812,-500.0,9.999e-05,2]
[348505529,1736595038821,-500.0,9.999e-05,2]
[348505530,1736595038830,-500.0,9.999e-05,2]
[348505531,1736595038839,-500.0,9.999e-05,2]
[348505532,1736595038848,-500.0,9.999e-05,2]
[348505533,1736595038858,-500.0,9.999e-05,2]
[348505534,1736595038867,-500.0,9.999e-05,2]
[348505535,1736595038876,-500.0,9.999e-05,2]
[348505536,1736595038886,-500.0,9.999e-05,2]
[348505537,1736595038895,-500.0,9.999e-05,2]
[348505538,1736595038904,-336.78193485,9.999e-05,2]
[348505539,1736595038914,-814.36,9.999e-05,2]
[348505540,1736595038926,-500.0,9.999e-05,2]
[348505541,1736595038936,-1545.82,9.999e-05,2]
[348505542,1736595038945,-500.0,9.999e-05,2]
[348505543,1736595038954,-1387.77072557,9.999e-05,2]
[348505544,1736595038967,-489.22927443,9.999e-05,2]
[348505545,1736595038977,-1024.42,9.999e-05,2]
[348505546,1736595038986,-1194.08,9.999e-05,2]
[348505547,1736595038995,-500.0,9.999e-05,2]
[348505548,1736595039006,-500.0,9.999e-05,2]
[348505549,1736595039015,-500.0,9.999e-05,2]
[348505550,1736595039024,-500.0,9.999e-05,2]
[348505551,1736595039034,-500.0,9.999e-05,2]
[348505552,1736595039043,-500.0,9.999e-05,2]
[348505553,1736595039052,-500.0,9.999e-05,2]
[348505554,1736595039061,-500.0,9.999e-05,2]
[348505555,1736595039070,-1262.42,9.999e-05,2]
[348505556,1736595039079,-542.67,9.999e-05,2]
[348505557,1736595039089,-829.36,9.999e-05,2]
[348505558,1736595039098,-1105.41,9.999e-05,2]
[348505559,1736595039107,-1348.61,9.999e-05,2]
[348505560,1736595039116,-1166.59,9.999e-05,2]
[348505561,1736595039125,-1323.39,9.999e-05,2]
[348505562,1736595039134,-1512.32,9.999e-05,2]
[348505563,1736595039142,-500.0,9.999e-05,2]
[348505564,1736595039152,-674.0,0.0001,2]
[348505565,1736595039162,-76307.50071548,0.0001,2]
[348505566,1736595039185,-787110.15879675,0.0001,2]
[348505567,1736595039196,-16085.0,0.0001,2]
[348505568,1736595039207,-6290.0000001,0.0001,2]
[348505569,1736595039219,-5880.0,0.0001,2]
[348505570,1736595040025,-258.06485204,9.898e-05,2]
[348505571,1736595040037,-241.93514796,9.898e-05,2]
[348505572,1736595040052,-531.81,9.899e-05,2]
[348505573,1736595040062,-500.0,9.899e-05,2]
[348505574,1736595040071,-500.0,9.899e-05,2]
[348505575,1736595040080,-500.0,9.899e-05,2]
[348505577,1736595040090,-500.0,9.899e-05,2]
[348505579,1736595040099,-500.0,9.973e-05,2]
[348505580,1736595040109,-598.01,9.997e-05,2]
[348505581,1736595040118,-28098.14719028,0.0001,2]
[348505582,1736595040130,-146936.81378934,0.0001,2]
[348505584,1736595040156,-5354.12112852,0.0001,2]
[348505585,1736595040167,-778.68994885,0.0001,2]
[348505586,1736595040197,-9315.63957483,0.0001,2]
[348505588,1736595040218,-1165.9087451,0.0001,2]
[348505589,1736595040229,-581.41795887,0.0001,2]
[348505591,1736595040246,-428.835,0.0001,2]
[348505592,1736595040578,-500.0,9.899e-05,2]
[348505593,1736595040587,-1074.73434756,0.0001,2]
[348505594,1736595040613,-555.59119612,9.999e-05,2]
[348505595,1736595040635,-89.65880388,9.999e-05,2]
[348505596,1736595040645,-191.92628963,0.0001,2]
[348505597,1736595040656,-632.68619699,0.0001,2]
[348505598,1736595040667,-1383.42726221,0.0001,2]
[348505599,1736595040679,-58400.75652336,0.0001,2]
[348505636,1736595043540,-500.0,9.898e-05,2]
[348505637,1736595043549,-500.0,9.898e-05,2]
[348505638,1736595043559,-500.0,9.899e-05,2]
[348505639,1736595043569,-500.0,9.899e-05,2]
[348505640,1736595043578,-1309.59,9.899e-05,2]
[348505641,1736595043588,-1199.75,9.999e-05,2]
[348505642,1736595043597,-774502.79465379,0.0001,2]
[348505643,1736595043609,-437.0666301,0.0001,2]
[348505645,1736595046171,-2403.15188034,9.799e-05,2]
[348505647,1736595053602,-96.84811966,9.799e-05,2]
[348505648,1736595053611,-299.61433996,9.898e-05,2]
[348505649,1736595069343,468.0,8e-05,2]
[348505650,1736595173351,711.43,8.219e-05,2]
[348505651,1736595370626,468.0,8e-05,2]
[348505652,1736595512636,161.38,8.239e-05,2]
[348505654,1736595633472,3000.0,8e-05,2]
[348505655,1736595648613,3004.5952137,1e-05,2]
[348505656,1736595672335,468.0,8e-05,2]
[348505657,1736595834254,1000.0,8.219e-05,2]
[348505659,1736596050172,718.5947863,8.219e-05,2]
[348505660,1736596050196,259.2652137,8.219e-05,2]
[348505710,1736596233237,-800.0,8.568e-05,2]
[348505712,1736596233247,-500.0,8.568e-05,2]
[348505714,1736596233260,-4341.48,8.621e-05,2]
[348505716,1736596233270,-150.0,8.732e-05,2]
[348505718,1736596233279,-63147.97398138,8.733e-05,2]
[348505720,1736596233291,-3191.88235525,8.733e-05,2]
[348505722,1736596233300,-150.0,8.986e-05,2]
[348505724,1736596233309,-11006.70489501,8.994e-05,2]
[348505726,1736596233319,-468.0,9e-05,2]
[348505728,1736596233328,-468.0,9e-05,2]
[348505730,1736596233338,-468.0,9e-05,2]
[348505732,1736596233348,-284.48,9.028e-05,2]
[348505734,1736596233357,-284.48,9.031e-05,2]
[348505736,1736596233367,-42121.81296358,9.032e-05,2]
[348505737,1736596233376,-250.0,9.033e-05,2]
[348505739,1736596233386,-284.48,9.033e-05,2]
[348505741,1736596233395,-284.48,9.036e-05,2]
[348505742,1736596233405,-284.48,9.038e-05,2]
[348505743,1736596233415,-284.48,9.04e-05,2]
[348505744,1736596233424,-284.48,9.043e-05,2]
[348505745,1736596233434,-284.48,9.045e-05,2]
[348505746,1736596233443,-250.0,9.045e-05,2]
[348505747,1736596233453,-284.48,9.048e-05,2]
[348505748,1736596233462,-284.48,9.05e-05,2]
[348505749,1736596233472,-284.48,9.052e-05,2]
[348505750,1736596233482,-284.48,9.055e-05,2]
[348505751,1736596233492,-284.48,9.057e-05,2]
[348505752,1736596233502,-250.0,9.059e-05,2]
[348505753,1736596233512,-284.48,9.059e-05,2]
[348505754,1736596233521,-50262.89401685,9.06e-05,2]
[348505755,1736596233531,-284.48,9.062e-05,2]
[348505756,1736596233540,-284.48,9.064e-05,2]
[348505757,1736596233550,-284.48,9.067e-05,2]
[348505758,1736596233560,-284.48,9.069e-05,2]
[348505759,1736596233569,-745.03,9.07e-05,2]
[348505761,1736596233580,-284.48,9.071e-05,2]
[348505763,1736596233589,-284.48,9.074e-05,2]
[348505765,1736596233599,-1000.0,9.247e-05,2]
[348505767,1736596233608,-166.71,9.349e-05,2]
[348505769,1736596233618,-201.604,9.5e-05,2]
[348505771,1736596233627,-580.29685195,9.664e-05,2]
[348505773,1736596233636,-1842.65,9.798e-05,2]
[348505775,1736596233646,-7503.0,9.799e-05,2]
[348505777,1736596233655,-753.08,9.896e-05,2]
[348505779,1736596233664,-500.0,9.896e-05,2]
[348505781,1736596233673,-810.39,9.896e-05,2]
[348505783,1736596233683,-500.0,9.896e-05,2]
[348505785,1736596233692,-1341.97,9.896e-05,2]
[348505787,1736596233700,-500.0,9.896e-05,2]
[348505789,1736596233710,-500.0,9.896e-05,2]
[348505791,1736596233719,-500.0,9.896e-05,2]
[348505793,1736596233728,-500.0,9.896e-05,2]
[348505795,1736596233738,-579.03,9.896e-05,2]
[348505797,1736596233747,-500.0,9.896e-05,2]
[348505799,1736596233756,-500.0,9.897e-05,2]
[348505800,1736596233766,-500.0,9.897e-05,2]
[348505801,1736596233775,-500.0,9.897e-05,2]
[348505802,1736596233785,-500.0,9.897e-05,2]
[348505803,1736596233794,-500.0,9.897e-05,2]
[348505804,1736596233803,-500.0,9.897e-05,2]
[348505805,1736596233812,-500.0,9.897e-05,2]
[348505806,1736596233823,-500.0,9.897e-05,2]
[348505807,1736596233832,-500.0,9.897e-05,2]
[348505808,1736596233842,-500.0,9.897e-05,2]
[348505809,1736596233851,-500.0,9.897e-05,2]
[348505810,1736596233861,-500.0,9.897e-05,2]
[348505811,1736596233871,-500.0,9.897e-05,2]
[348505812,1736596233880,-500.0,9.897e-05,2]
[348505813,1736596233889,-500.0,9.897e-05,2]
[348505814,1736596233899,-1049.23,9.897e-05,2]
[348505815,1736596233909,-500.0,9.897e-05,2]
[348505817,1736596233919,-500.0,9.897e-05,2]
[348505819,1736596233927,-500.0,9.897e-05,2]
[348505821,1736596233936,-500.0,9.897e-05,2]
[348505823,1736596233945,-500.0,9.897e-05,2]
[348505825,1736596233954,-500.0,9.897e-05,2]
[348505826,1736596233963,-500.0,9.897e-05,2]
[348505827,1736596233973,-500.0,9.897e-05,2]
[348505828,1736596233982,-359.51382677,9.897e-05,2]
[348505829,1736596233991,-500.0,9.897e-05,2]
[348505830,1736596234001,-500.0,9.897e-05,2]
[348505831,1736596234011,-500.0,9.897e-05,2]
[348505832,1736596234020,-500.0,9.897e-05,2]
[348505833,1736596234030,-500.0,9.897e-05,2]
[348505834,1736596234039,-500.0,9.897e-05,2]
[348505835,1736596234049,-500.0,9.897e-05,2]
[348505836,1736596234058,-500.0,9.897e-05,2]
[348505837,1736596234068,-500.0,9.897e-05,2]
[348505838,1736596234079,-500.0,9.897e-05,2]
[348505839,1736596234088,-500.0,9.897e-05,2]
[348505840,1736596234098,-500.0,9.897e-05,2]
[348505841,1736596234107,-500.0,9.897e-05,2]
[348505842,1736596234116,-500.0,9.897e-05,2]
[348505843,1736596234126,-500.0,9.897e-05,2]
[348505844,1736596234135,-500.0,9.897e-05,2]
[348505845,1736596234144,-500.0,9.897e-05,2]
[348505846,1736596234154,-500.0,9.897e-05,2]
[348505847,1736596234163,-500.0,9.897e-05,2]
[348505848,1736596234173,-500.0,9.897e-05,2]
[348505849,1736596234182,-500.0,9.897e-05,2]
[348505850,1736596234193,-500.0,9.897e-05,2]
[348505851,1736596234203,-500.0,9.897e-05,2]
[348505852,1736596234212,-500.0,9.897e-05,2]
[348505853,1736596234221,-500.0,9.897e-05,2]
[348505854,1736596234230,-500.0,9.897e-05,2]
[348505855,1736596234239,-500.0,9.897e-05,2]
[348505856,1736596234249,-500.0,9.897e-05,2]
[348505857,1736596234262,-500.0,9.897e-05,2]
[348505858,1736596234272,-638.98820433,9.897e-05,2]
[348505859,1736596234281,-500.0,9.897e-05,2]
[348505860,1736596234290,-500.0,9.897e-05,2]
[348505861,1736596234301,-500.0,9.897e-05,2]
[348505862,1736596234311,-500.0,9.897e-05,2]
[348505863,1736596234321,-500.0,9.897e-05,2]
[348505864,1736596234332,-500.0,9.897e-05,2]
[348505865,1736596234342,-500.0,9.897e-05,2]
[348505866,1736596234352,-500.0,9.897e-05,2]
[348505867,1736596234361,-500.0,9.897e-05,2]
[348505868,1736596234371,-500.0,9.897e-05,2]
[348505869,1736596234380,-1193.263054,9.897e-05,2]
[348505870,1736596234390,-500.0,9.897e-05,2]
[348505871,1736596234399,-500.0,9.897e-05,2]
[348505872,1736596234409,-500.0,9.897e-05,2]
[348505873,1736596234419,-500.0,9.897e-05,2]
[348505874,1736596234430,-500.0,9.897e-05,2]
[348505875,1736596234439,-500.0,9.897e-05,2]
[348505876,1736596234448,-500.0,9.897e-05,2]
[348505877,1736596234457,-500.0,9.897e-05,2]
[348505878,1736596234467,-500.0,9.897e-05,2]
[348505879,1736596234476,-500.0,9.897e-05,2]
[348505880,1736596234485,-500.0,9.897e-05,2]
[348505881,1736596234495,-500.0,9.897e-05,2]
[348505882,1736596234504,-500.0,9.897e-05,2]
[348505883,1736596234513,-500.0,9.897e-05,2]
[348505884,1736596234522,-1138.610443,9.897e-05,2]
[348505885,1736596234531,-1195.58,9.897e-05,2]
[348505886,1736596234540,-500.0,9.897e-05,2]
[348505887,1736596234550,-500.0,9.897e-05,2]
[348505888,1736596234558,-500.0,9.897e-05,2]
[348505889,1736596234567,-500.0,9.897e-05,2]
[348505890,1736596234577,-500.0,9.897e-05,2]
[348505891,1736596234586,-500.0,9.897e-05,2]
[348505892,1736596234595,-162.596553,9.897e-05,2]
[348505893,1736596234604,-500.0,9.897e-05,2]
[348505894,1736596234613,-727.53,9.897e-05,2]
[348505895,1736596234623,-500.0,9.897e-05,2]
[348505896,1736596234632,-500.0,9.897e-05,2]
[348505897,1736596234641,-166.828222,9.897e-05,2]
[348505898,1736596234651,-500.0,9.897e-05,2]
[348505899,1736596234660,-3208.76,9.897e-05,2]
[348505900,1736596234670,-500.0,9.897e-05,2]
[348505901,1736596234679,-500.0,9.897e-05,2]
[348505902,1736596234689,-1528.87,9.897e-05,2]
[348505903,1736596234698,-500.0,9.897e-05,2]
[348505904,1736596234707,-500.0,9.897e-05,2]
[348505905,1736596234717,-500.0,9.897e-05,2]
[348505906,1736596234726,-500.0,9.897e-05,2]
[348505907,1736596234737,-500.0,9.897e-05,2]
[348505908,1736596234746,-500.0,9.897e-05,2]
[348505909,1736596234755,-4379.77,9.897e-05,2]
[348505910,1736596234765,-500.0,9.897e-05,2]
[348505911,1736596234774,-500.0,9.897e-05,2]
[348505912,1736596234783,-500.0,9.897e-05,2]
[348505913,1736596234792,-706.78,9.897e-05,2]
[348505914,1736596234802,-500.0,9.897e-05,2]
[348505915,1736596234811,-500.0,9.897e-05,2]
[348505916,1736596234821,-500.0,9.897e-05,2]
[348505917,1736596234832,-500.0,9.897e-05,2]
[348505918,1736596234841,-500.0,9.897e-05,2]
[348505919,1736596234851,-500.0,9.897e-05,2]
[348505920,1736596234860,-500.0,9.897e-05,2]
[348505921,1736596234869,-500.0,9.897e-05,2]
[348505922,1736596234878,-500.0,9.897e-05,2]
[348505923,1736596234887,-500.0,9.897e-05,2]
[348505924,1736596234897,-500.0,9.897e-05,2]
[348505925,1736596234906,-510.47,9.897e-05,2]
[348505926,1736596234915,-500.0,9.897e-05,2]
[348505927,1736596234925,-500.0,9.897e-05,2]
[348505928,1736596234934,-1939.28,9.897e-05,2]
[348505929,1736596234943,-500.0,9.897e-05,2]
[348505930,1736596234952,-500.0,9.897e-05,2]
[348505931,1736596234962,-500.0,9.897e-05,2]
[348505932,1736596234971,-500.0,9.897e-05,2]
[348505933,1736596234980,-833.11,9.897e-05,2]
[348505934,1736596234989,-500.0,9.897e-05,2]
[348505935,1736596234998,-500.0,9.897e-05,2]
[348505936,1736596235007,-1448.55,9.897e-05,2]
[348505937,1736596235016,-500.0,9.897e-05,2]
[348505938,1736596235025,-500.0,9.897e-05,2]
[348505939,1736596235034,-500.0,9.897e-05,2]
[348505940,1736596235044,-500.0,9.897e-05,2]
[348505941,1736596235053,-500.0,9.897e-05,2]
[348505942,1736596235062,-500.0,9.897e-05,2]
[348505943,1736596235071,-500.0,9.897e-05,2]
[348505944,1736596235082,-285.82171714,9.897e-05,2]
[348505945,1736596235092,-500.0,9.897e-05,2]
[348505946,1736596235102,-2293.1,9.897e-05,2]
[348505947,1736596235111,-500.0,9.897e-05,2]
[348505948,1736596235120,-500.0,9.897e-05,2]
[348505949,1736596235129,-500.0,9.897e-05,2]
[348505950,1736596235138,-500.0,9.897e-05,2]
[348505951,1736596235147,-500.0,9.897e-05,2]
[348505952,1736596235156,-500.0,9.897e-05,2]
[348505953,1736596235166,-500.0,9.897e-05,2]
[348505954,1736596235175,-2381.62,9.897e-05,2]
[348505955,1736596235185,-500.0,9.897e-05,2]
[348505956,1736596235195,-2417.04,9.897e-05,2]
[348505957,1736596235205,-500.0,9.897e-05,2]
[348505958,1736596235214,-1391.2,9.897e-05,2]
[348505959,1736596235224,-500.0,9.897e-05,2]
[348505960,1736596235233,-500.0,9.897e-05,2]
[348505961,1736596235243,-500.0,9.897e-05,2]
[348505962,1736596235252,-500.0,9.897e-05,2]
[348505963,1736596235264,-500.0,9.897e-05,2]
[348505964,1736596235274,-500.0,9.897e-05,2]
[348505965,1736596235283,-500.0,9.897e-05,2]
[348505966,1736596235292,-549.13786899,9.897e-05,2]
[348505967,1736596235301,-500.0,9.897e-05,2]
[348505968,1736596235311,-500.0,9.897e-05,2]
[348505969,1736596235321,-500.0,9.897e-05,2]
[348505970,1736596235331,-500.0,9.897e-05,2]
[348505971,1736596235341,-1904.23,9.897e-05,2]
[348505972,1736596235350,-500.0,9.897e-05,2]
[348505973,1736596235359,-500.0,9.897e-05,2]
[348505974,1736596235369,-500.0,9.897e-05,2]
[348505975,1736596235378,-500.0,9.897e-05,2]
[348505976,1736596235387,-500.0,9.897e-05,2]
[348505977,1736596235397,-4285.14,9.897e-05,2]
[348505978,1736596235407,-1461.62,9.897e-05,2]
[348505979,1736596235417,-500.0,9.897e-05,2]
[348505980,1736596235427,-500.0,9.897e-05,2]
[348505981,1736596235436,-500.0,9.897e-05,2]
[348505982,1736596235445,-500.0,9.897e-05,2]
[348505983,1736596235454,-500.0,9.897e-05,2]
[348505984,1736596235463,-500.0,9.897e-05,2]
[348505985,1736596235473,-500.0,9.897e-05,2]
[348505986,1736596235482,-500.0,9.897e-05,2]
[348505987,1736596235492,-958.11,9.897e-05,2]
[348505988,1736596235501,-1217.3,9.897e-05,2]
[348505989,1736596235510,-500.0,9.897e-05,2]
[348505990,1736596235519,-500.0,9.897e-05,2]
[348505991,1736596235529,-958.31,9.897e-05,2]
[348505992,1736596235541,-500.0,9.897e-05,2]
[348505993,1736596235551,-500.0,9.897e-05,2]
[348505994,1736596235561,-2809.65,9.897e-05,2]
[348505995,1736596235570,-500.0,9.897e-05,2]
[348505996,1736596235581,-500.0,9.897e-05,2]
[348505997,1736596235590,-500.0,9.897e-05,2]
[348505998,1736596235599,-500.0,9.897e-05,2]
[348505999,1736596235608,-500.0,9.897e-05,2]
[348506000,1736596235618,-500.0,9.897e-05,2]
[348506001,1736596235627,-1965.23,9.897e-05,2]
[348506002,1736596235636,-500.0,9.897e-05,2]
[348506003,1736596235646,-500.0,9.897e-05,2]
[348506004,1736596235655,-379.50407703,9.897e-05,2]
[348506005,1736596235671,-120.49592297,9.897e-05,2]
[348506006,1736596235680,-500.0,9.897e-05,2]
[348506007,1736596235689,-523.72,9.897e-05,2]
[348506008,1736596235698,-500.0,9.897e-05,2]
[348506009,1736596235707,-3459.51,9.897e-05,2]
[348506010,1736596235718,-500.0,9.897e-05,2]
[348506011,1736596235727,-500.0,9.897e-05,2]
[348506012,1736596235736,-500.0,9.897e-05,2]
[348506013,1736596235746,-500.0,9.897e-05,2]
[348506014,1736596235755,-500.0,9.897e-05,2]
[348506015,1736596235765,-500.0,9.897e-05,2]
[348506016,1736596235773,-500.0,9.897e-05,2]
[348506017,1736596235782,-500.0,9.897e-05,2]
[348506018,1736596235792,-500.0,9.897e-05,2]
[348506019,1736596235801,-500.0,9.897e-05,2]
[348506020,1736596235810,-500.0,9.897e-05,2]
[348506021,1736596235820,-500.0,9.897e-05,2]
[348506022,1736596235829,-500.0,9.897e-05,2]
[348506023,1736596235838,-1189.62,9.897e-05,2]
[348506024,1736596235848,-2015.36,9.897e-05,2]
[348506025,1736596235857,-500.0,9.897e-05,2]
[348506026,1736596235866,-500.0,9.897e-05,2]
[348506027,1736596235876,-500.0,9.897e-05,2]
[348506028,1736596235885,-500.0,9.897e-05,2]
[348506029,1736596235895,-500.0,9.897e-05,2]
[348506030,1736596235904,-500.0,9.897e-05,2]
[348506031,1736596235914,-500.0,9.897e-05,2]
[348506032,1736596235923,-500.0,9.897e-05,2]
[348506033,1736596235932,-500.0,9.897e-05,2]
[348506034,1736596235942,-500.0,9.897e-05,2]
[348506035,1736596235951,-500.0,9.897e-05,2]
[348506036,1736596235960,-500.0,9.897e-05,2]
[348506037,1736596235970,-500.0,9.897e-05,2]
[348506038,1736596235980,-500.0,9.897e-05,2]
[348506039,1736596235989,-500.0,9.897e-05,2]
[348506040,1736596235998,-500.0,9.897e-05,2]
[348506041,1736596236008,-500.0,9.897e-05,2]
[348506042,1736596236017,-500.0,9.897e-05,2]
[348506043,1736596236027,-500.0,9.897e-05,2]
[348506044,1736596236036,-1834.7,9.897e-05,2]
[348506045,1736596236046,-500.0,9.897e-05,2]
[348506046,1736596236055,-500.0,9.897e-05,2]
[348506047,1736596236064,-500.0,9.897e-05,2]
[348506048,1736596236074,-500.0,9.897e-05,2]
[348506049,1736596236083,-1463.75,9.897e-05,2]
[348506050,1736596236093,-500.0,9.897e-05,2]
[348506051,1736596236102,-500.0,9.897e-05,2]
[348506052,1736596236112,-947.2,9.897e-05,2]
[348506053,1736596236121,-500.0,9.897e-05,2]
[348506054,1736596236131,-500.0,9.898e-05,2]
[348506055,1736596236141,-500.0,9.898e-05,2]
[348506056,1736596236150,-500.0,9.898e-05,2]
[348506057,1736596236160,-500.0,9.898e-05,2]
[348506058,1736596236169,-500.0,9.898e-05,2]
[348506059,1736596236178,-500.0,9.898e-05,2]
[348506060,1736596236188,-500.0,9.898e-05,2]
[348506061,1736596236198,-500.0,9.898e-05,2]
[348506062,1736596236208,-500.0,9.898e-05,2]
[348506063,1736596236217,-500.0,9.898e-05,2]
[348506064,1736596236227,-500.0,9.898e-05,2]
[348506065,1736596236236,-500.0,9.898e-05,2]
[348506066,1736596236245,-500.0,9.898e-05,2]
[348506067,1736596236257,-500.0,9.898e-05,2]
[348506068,1736596236267,-500.0,9.898e-05,2]
[348506069,1736596236277,-500.0,9.898e-05,2]
[348506070,1736596236286,-500.0,9.898e-05,2]
[348506071,1736596236295,-540.86,9.898e-05,2]
[348506072,1736596236306,-500.0,9.898e-05,2]
[348506073,1736596236315,-500.0,9.898e-05,2]
[348506074,1736596236326,-500.0,9.898e-05,2]
[348506075,1736596236335,-500.0,9.898e-05,2]
[348506076,1736596236345,-500.0,9.898e-05,2]
[348506077,1736596236354,-500.0,9.898e-05,2]
[348506078,1736596236363,-500.0,9.898e-05,2]
[348506079,1736596236373,-500.0,9.898e-05,2]
[348506080,1736596236383,-500.0,9.898e-05,2]
[348506081,1736596236392,-500.0,9.898e-05,2]
[348506082,1736596236402,-500.0,9.898e-05,2]
[348506083,1736596236411,-500.0,9.898e-05,2]
[348506084,1736596236422,-500.0,9.898e-05,2]
[348506085,1736596236431,-500.0,9.898e-05,2]
[348506086,1736596236441,-500.0,9.898e-05,2]